bitfinex/quotes_SOLUSD_20240818
["timestamp","ask_amount","ask_price","bid_price","bid_amount"]
[1723997304762,30.0,145.91,145.9,0.8728613]
[1723997304968,75.0,145.91,145.9,0.8728613]
[1723997305562,117.69,145.91,145.9,0.8728613]
[1723997305759,119.40408283,145.91,145.9,0.8728613]
[1723997305984,126.96718911,145.91,145.9,0.8728613]
[1723997306192,106.40718911,145.91,145.9,0.8728613]
[1723997306483,82.56310628,145.91,145.9,0.8728613]
[1723997309303,75.0,145.91,145.9,0.8728613]
[1723997310971,76.71382606,145.91,145.9,0.8728613]
[1723997312599,99.9629131,145.91,145.9,0.8728613]
[1723997312800,92.39992606,145.91,145.9,0.8728613]
[1723997312999,99.96294234,145.91,145.9,0.8728613]
[1723997313301,92.39992606,145.91,145.9,0.8728613]
[1723997313767,60.6861,145.91,145.9,0.8728613]
[1723997315002,15.6861,145.94,145.9,0.8728613]
[1723997315174,45.0,145.93,145.9,0.8728613]
[1723997316788,30.0,145.91,145.9,0.8728613]
[1723997319197,75.0,145.91,145.9,0.8728613]
[1723997320097,45.0,145.91,145.9,0.8728613]
[1723997322574,1.71377756,145.93,145.9,0.8728613]
[1723997322780,46.71377756,145.93,145.9,0.8728613]
[1723997323085,30.0,145.91,145.9,0.8728613]
[1723997325891,53.86,145.93,145.9,0.8728613]
[1723997326087,1.71376377,145.92,145.9,0.8728613]
[1723997326486,53.86,145.93,145.9,0.8728613]
[1723997326798,1.71376327,145.92,145.9,0.8728613]
[1723997331699,30.0,145.91,145.9,0.8728613]
[1723997332211,37.56460765,145.91,145.9,0.8728613]
[1723997333013,37.56457275,145.91,145.9,0.8728613]
[1723997337596,37.56286172,145.91,145.9,0.8728613]
[1723997338217,52.56286172,145.91,145.9,0.8728613]
[1723997338401,88.83636172,145.91,145.9,0.3728613]
[1723997338804,81.2735,145.91,145.9,0.3728613]
[1723997339111,88.83329197,145.91,145.9,0.3728613]
[1723997340793,88.83229226,145.91,145.9,0.3728613]
[1723997341125,118.83229226,145.91,145.9,0.3728613]
[1723997341617,125.98401493,145.91,145.9,0.3728613]
[1723997342607,125.986087,145.91,145.9,0.3728613]
[1723997343207,44.712587,145.91,145.9,0.3728613]
[1723997343421,37.56086433,145.91,145.9,0.3728613]
[1723997344330,7.56086433,145.91,145.9,0.3728613]
[1723997345203,52.56086433,145.91,145.9,0.3728613]
[1723997345911,82.56086433,145.91,145.9,0.3728613]
[1723997347318,110.03436433,145.91,145.9,0.3728613]
[1723997347523,89.41436433,145.91,145.9,0.3728613]
[1723997348020,110.03436433,145.91,145.9,0.3728613]
[1723997348225,102.4735,145.91,145.9,0.3728613]
[1723997348424,110.03619557,145.91,145.9,0.3728613]
[1723997348809,89.41619557,145.91,145.9,0.3728613]
[1723997349511,59.41619557,145.91,145.9,0.3728613]
[1723997350605,52.56269557,145.91,145.9,0.3728613]
[1723997352412,45.0,145.91,145.9,0.3728613]
[1723997352614,82.56333066,145.91,145.9,0.3728613]
[1723997354413,52.56333066,145.91,145.9,0.3728613]
[1723997355133,80.03683066,145.91,145.9,0.3728613]
[1723997355528,52.56333066,145.91,145.9,0.3728613]
[1723997355914,61.42333066,145.91,145.9,0.3728613]
[1723997356814,53.86,145.91,145.9,0.3728613]
[1723997357019,61.42201654,145.91,145.9,0.3728613]
[1723997359320,91.42201654,145.91,145.9,0.3728613]
[1723997359845,120.60947576,145.91,145.9,0.3728613]
[1723997361037,83.04745922,145.91,145.9,0.3728613]
[1723997361247,120.60895935,145.91,145.9,0.3728613]
[1723997361417,111.3335,145.91,145.9,0.3728613]
[1723997361612,118.89500013,145.91,145.9,0.3728613]
[1723997361817,8.86,145.87,145.81,6.291]
[1723997362036,54.27474054,145.86,145.81,6.291]
[1723997362238,9.27474054,145.85,145.81,6.291]
[1723997362539,7.56031019,145.84,145.81,6.291]
[1723997362739,7.55995035,145.83,145.81,6.291]
[1723997362949,1.71443035,145.85,145.81,6.291]
[1723997363135,7.55993704,145.84,145.81,6.291]
[1723997363441,1.71443035,145.85,145.81,6.291]
[1723997363742,45.0,145.86,145.81,6.291]
[1723997363743,7.56023654,145.84,145.81,6.291]
[1723997363950,45.0,145.86,145.81,6.291]
[1723997364119,7.56025771,145.85,145.81,6.291]
[1723997364321,7.56025771,145.84,145.81,6.291]
[1723997364541,1.71442936,145.85,145.81,6.291]
[1723997364833,7.56008863,145.84,145.81,6.291]
[1723997365149,1.71442936,145.85,145.81,6.291]
[1723997365339,7.56007121,145.84,145.81,6.291]
[1723997365538,1.71442936,145.85,145.81,6.291]
[1723997365853,7.55924362,145.84,145.78,25.3983]
[1723997366147,1.71458514,145.83,145.78,22.5975]
[1723997366332,1.71458514,145.82,145.78,22.5975]
[1723997366938,45.0,145.84,145.78,22.5975]
[1723997367146,7.55762965,145.83,145.78,22.5975]
[1723997367349,45.0,145.82,145.78,22.5975]
[1723997368241,45.0,145.82,145.75,0.8728613]
[1723997368242,16.41598821,145.81,145.75,17.1805613]
[1723997368440,7.55598821,145.8,145.75,0.8728613]
[1723997368643,8.86,145.81,145.75,0.8728613]
[1723997368946,52.55592494,145.8,145.75,0.8728613]
[1723997369239,45.0,145.8,145.75,0.8728613]
[1723997369449,1.71509551,145.79,145.75,0.8728613]
[1723997371429,45.0,145.8,145.75,0.8728613]
[1723997371731,45.0,145.81,145.75,0.8728613]
[1723997372536,45.0,145.82,145.75,0.8728613]
[1723997372855,45.0,145.83,145.75,0.8728613]
[1723997373037,7.55591378,145.82,145.75,0.8728613]
[1723997373229,45.0,145.83,145.75,0.8728613]
[1723997373431,7.55586245,145.82,145.75,0.8728613]
[1723997373626,45.0,145.83,145.75,0.8728613]
[1723997373852,9.27072446,145.82,145.75,0.8728613]
[1723997374055,45.0,145.81,145.75,0.8728613]
[1723997374226,45.0,145.83,145.75,0.8728613]
[1723997376438,45.0,145.83,145.76,8.86]
[1723997376642,15.7155,145.87,145.78,15.433]
[1723997376836,7.55884713,145.86,145.78,15.433]
[1723997377039,15.7155,145.87,145.78,15.433]
[1723997377245,7.55997529,145.86,145.78,15.433]
[1723997377431,15.7155,145.87,145.78,15.433]
[1723997377647,8.86,145.87,145.78,15.433]
[1723997378050,30.7439,145.89,145.8,8.86]
[1723997378666,9.2756788,145.88,145.8,8.86]
[1723997378956,8.56928537,145.88,145.8,8.86]
[1723997379157,37.16824422,145.91,145.81,15.8532]
[1723997379360,7.56144436,145.9,145.83,6.573]
[1723997379666,38.86,145.91,145.83,6.573]
[1723997380029,1.7139827,145.9,145.83,6.573]
[1723997380252,1.71414988,145.89,145.83,6.573]
[1723997380866,10.57414988,145.89,145.83,6.573]
[1723997381036,45.0,145.88,145.83,6.573]
[1723997381236,1.71425185,145.87,145.83,6.573]
[1723997382936,45.0,145.88,145.83,6.573]
[1723997383341,1.71424982,145.87,145.83,6.573]
[1723997383550,46.71428169,145.88,145.83,6.573]
[1723997383756,1.71426246,145.87,145.83,6.573]
[1723997383956,45.0,145.88,145.83,6.573]
[1723997385956,45.0,145.89,145.83,6.573]
[1723997387653,16.42166822,145.88,145.83,6.573]
[1723997387850,46.71427147,145.87,145.83,6.573]
[1723997388539,45.0,145.87,145.83,6.573]
[1723997388738,46.71422767,145.87,145.83,6.573]
[1723997389060,45.0,145.87,145.83,6.573]
[1723997389750,46.71425223,145.87,145.83,6.573]
[1723997389964,1.71429939,145.86,145.83,6.573]
[1723997390164,45.0,145.87,145.83,6.573]
[1723997391158,45.0,145.88,145.83,6.573]
[1723997391962,45.0,145.89,145.83,6.573]
[1723997393658,9.28212036,145.88,145.83,6.573]
[1723997393854,45.0,145.87,145.83,6.573]
[1723997394053,1.71423907,145.88,145.83,6.573]
[1723997394458,10.57423907,145.88,145.81,15.8532]
[1723997394861,45.0,145.87,145.81,15.8532]
[1723997395052,1.71439006,145.86,145.81,15.8532]
[1723997395254,1.71438943,145.85,145.81,15.8532]
[1723997395863,6.8559,145.86,145.78,22.6986]
[1723997396063,8.86,145.84,145.78,22.6986]
[1723997396450,8.86,145.86,145.78,22.6986]
[1723997396778,45.0,145.87,145.79,8.86]
[1723997396980,7.56838902,145.86,145.79,8.86]
[1723997397182,45.0,145.87,145.79,8.86]
[1723997397350,7.56789148,145.86,145.79,8.86]
[1723997397550,45.0,145.87,145.79,8.86]
[1723997398167,1.71441371,145.86,145.79,8.86]
[1723997398367,45.0,145.87,145.78,31.5586]
[1723997398669,1.71440248,145.86,145.78,31.5586]
[1723997398872,1.71444367,145.85,145.78,31.5586]
[1723997399082,1.71441315,145.86,145.78,31.5586]
[1723997399378,1.71447327,145.85,145.78,31.5586]
[1723997399579,46.71447327,145.85,145.78,31.5586]
[1723997399765,45.0,145.85,145.78,31.5586]
[1723997401279,16.6424,145.89,145.8,8.86]
[1723997401461,7.56807028,145.88,145.8,8.86]
[1723997401661,7.56807028,145.87,145.82,8.86]
[1723997401870,6.8535,145.91,145.82,8.86]
[1723997402185,7.56942895,145.9,145.82,8.86]
[1723997402482,7.56942895,145.89,145.82,8.86]
[1723997402655,9.28347561,145.88,145.82,8.86]
[1723997402856,1.71403468,145.88,145.8,8.86]
[1723997403051,46.71403468,145.88,145.8,8.86]
[1723997403251,16.42893497,145.87,145.78,31.5586]
[1723997403471,45.0,145.86,145.79,20.0]
[1723997404678,45.0,145.87,145.79,20.0]
[1723997404885,7.56941375,145.86,145.79,20.0]
[1723997405089,45.0,145.87,145.79,20.0]
[1723997405276,7.56935642,145.86,145.79,20.0]
[1723997405586,45.0,145.87,145.79,20.0]
[1723997405771,7.56937247,145.86,145.79,20.0]
[1723997406084,45.0,145.87,145.79,20.0]
[1723997406291,7.56933809,145.86,145.79,20.0]
[1723997406460,45.0,145.87,145.79,20.0]
[1723997406661,7.56928702,145.86,145.79,20.0]
[1723997406875,45.0,145.87,145.79,20.0]
[1723997407162,18.14371158,145.86,145.78,22.6986]
[1723997407379,8.86,145.84,145.78,22.6986]
[1723997407688,1.71463601,145.83,145.78,22.6986]
[1723997407891,8.86,145.86,145.78,22.6986]
[1723997408073,52.56929617,145.85,145.78,22.6986]
[1723997408264,45.0,145.85,145.78,22.6986]
[1723997408462,8.86,145.86,145.78,22.6986]
[1723997408662,15.715,145.88,145.79,8.86]
[1723997408969,7.56862236,145.87,145.79,8.86]
[1723997409164,7.56862236,145.86,145.79,8.86]
[1723997409364,15.7145,145.89,145.79,8.86]
[1723997409569,7.56843592,145.88,145.79,8.86]
[1723997409787,7.56843592,145.87,145.79,8.86]
[1723997410089,15.7145,145.89,145.79,8.86]
[1723997410266,7.5672013,145.88,145.79,8.86]
[1723997410462,7.5672013,145.87,145.79,8.86]
[1723997410766,15.7145,145.89,145.79,8.86]
[1723997411085,45.0,145.88,145.81,8.86]
[1723997413079,7.56724199,145.87,145.81,8.86]
[1723997413258,45.0,145.88,145.81,8.86]
[1723997413461,7.56720936,145.87,145.81,8.86]
[1723997413661,45.0,145.88,145.81,8.86]
[1723997413887,7.56721175,145.87,145.81,8.86]
[1723997414189,45.0,145.88,145.81,8.86]
[1723997414370,7.56725773,145.87,145.81,8.86]
[1723997414564,1.71417515,145.91,145.81,8.86]
[1723997414770,7.56731341,145.9,145.85,8.86]
[1723997414964,6.8524,145.94,145.85,8.86]
[1723997415169,7.56953245,145.93,145.85,8.86]
[1723997415376,7.56953245,145.92,145.85,8.86]
[1723997415579,7.56953245,145.91,145.85,8.86]
[1723997415790,6.8524,145.94,145.85,8.86]
[1723997416000,7.56968241,145.93,145.85,8.86]
[1723997416182,9.28317843,145.92,145.85,8.86]
[1723997416366,15.7117,145.95,145.86,22.7129]
[1723997416560,7.56980312,145.94,145.86,22.7129]
[1723997416765,7.56980312,145.93,145.86,22.7129]
[1723997417064,7.56980312,145.92,145.86,22.7129]
[1723997417385,7.56980312,145.91,145.86,22.7129]
[1723997417565,6.8517,145.95,145.86,22.7129]
[1723997417892,7.56984515,145.94,145.86,22.7129]
[1723997418091,7.56984515,145.93,145.86,22.7129]
[1723997418265,7.56984515,145.92,145.86,22.7129]
[1723997418469,6.8517,145.95,145.86,22.7129]
[1723997418678,52.56976236,145.94,145.86,22.7129]
[1723997418883,7.56976236,145.93,145.87,8.86]
[1723997419073,45.0,145.94,145.87,8.86]
[1723997419074,7.56976236,145.92,145.87,8.86]
[1723997419277,8.86,145.96,145.87,8.86]
[1723997419480,52.57032335,145.95,145.87,8.86]
[1723997419695,7.57032335,145.94,145.86,22.7129]
[1723997419991,7.57032335,145.93,145.87,8.86]
[1723997420199,7.57032335,145.92,145.87,8.86]
[1723997420507,45.0,145.95,145.87,8.86]
[1723997420669,7.57034037,145.94,145.87,8.86]
[1723997420870,7.57034037,145.93,145.87,8.86]
[1723997421077,7.57034037,145.92,145.87,8.86]
[1723997421268,45.0,145.95,145.87,8.86]
[1723997421667,7.57030158,145.94,145.87,8.86]
[1723997421869,7.57030158,145.93,145.87,8.86]
[1723997422089,7.57023729,145.92,145.87,8.86]
[1723997422290,45.0,145.95,145.87,8.86]
[1723997422464,7.57034037,145.94,145.87,8.86]
[1723997422661,7.57034037,145.93,145.87,8.86]
[1723997422885,7.57034037,145.92,145.87,8.86]
[1723997423197,45.0,145.95,145.87,8.86]
[1723997423483,7.57185385,145.94,145.87,8.86]
[1723997423692,7.57185385,145.93,145.87,8.86]
[1723997423891,7.57185385,145.92,145.87,8.86]
[1723997424077,51.8517,145.95,145.86,22.7129]
[1723997424078,1.71358775,145.91,145.86,22.7129]
[1723997425293,1.71366049,145.93,145.86,22.7129]
[1723997425591,9.28661657,145.92,145.86,22.7129]
[1723997425894,7.57295605,145.91,145.86,22.7129]
[1723997427302,8.86,145.94,145.86,22.7129]
[1723997427485,7.57295296,145.93,145.88,8.86]
[1723997427811,7.57295296,145.92,145.88,8.86]
[1723997427979,45.0,145.95,145.88,8.86]
[1723997428178,7.57253671,145.94,145.88,8.86]
[1723997428407,7.57253671,145.93,145.88,8.86]
[1723997428711,45.0,145.95,145.88,8.86]
[1723997428874,7.57253204,145.94,145.88,8.86]
[1723997429079,7.57253204,145.93,145.88,8.86]
[1723997429279,23.4932,145.97,145.88,8.86]
[1723997429480,7.57246843,145.96,145.9,8.86]
[1723997429701,7.57246843,145.95,145.91,6.5475]
[1723997430003,15.7094,146.0,145.92,15.3735]
[1723997430186,7.57068792,145.99,145.92,15.3735]
[1723997430520,7.57068792,145.98,145.92,24.2335]
[1723997430707,15.7084,146.02,145.92,24.2335]
[1723997431008,7.5700809,146.01,145.97,6.5475]
[1723997431210,6.8473,146.05,145.97,6.5475]
[1723997431381,7.56917931,146.04,145.97,6.5475]
[1723997431577,7.56917931,146.03,145.97,6.5475]
[1723997431798,7.56917931,146.02,145.97,6.5475]
[1723997432008,6.8473,146.05,145.97,6.5475]
[1723997432189,7.56820183,146.04,145.97,6.5475]
[1723997432506,52.56820183,146.03,145.97,6.5475]
[1723997432682,45.0,146.03,145.97,21.921]
[1723997432882,45.0,146.04,145.97,21.921]
[1723997433110,7.56820899,146.03,145.97,21.921]
[1723997433287,45.0,146.04,145.97,21.921]
[1723997435006,6.8468,146.06,145.97,21.921]
[1723997436008,38.4331,146.08,145.97,21.921]
[1723997436009,6.846,146.07,145.97,21.921]
[1723997436212,45.2786,146.08,145.97,21.921]
[1723997436512,28.9555,146.08,145.97,21.921]
[1723997436814,6.846,146.07,145.97,21.921]
[1723997436985,8.55793462,146.07,145.97,21.921]
[1723997437699,45.0,146.06,145.97,21.921]
[1723997437896,1.71211266,146.05,145.97,21.921]
[1723997438296,1.71211248,146.04,145.97,21.921]
[1723997438499,45.0,146.06,145.97,21.921]
[1723997438690,73.9565,146.06,145.97,21.921]
[1723997438996,22.11,146.04,145.97,21.921]
[1723997439187,45.0,146.03,145.97,21.921]
[1723997439388,1.71243022,146.02,145.97,21.921]
[1723997440006,1.7124301,146.01,145.97,21.921]
[1723997440201,46.71261755,146.03,145.97,21.921]
[1723997440407,1.71257855,146.02,145.97,21.921]
[1723997440713,51.8479,146.03,145.97,21.921]
[1723997441211,46.71260321,146.03,145.94,6.504]
[1723997441395,6.8492,146.01,145.94,6.504]
[1723997441599,8.56202281,146.01,145.94,6.504]
[1723997441906,45.0,146.0,145.94,6.504]
[1723997442115,1.71284988,145.99,145.94,6.504]
[1723997442287,1.71285734,145.98,145.94,6.504]
[1723997442686,67.11,146.0,145.94,6.504]
[1723997443305,1.71284009,145.99,145.94,6.504]
[1723997443515,1.71283979,145.98,145.94,6.504]
[1723997443719,1.71284195,145.99,145.94,6.504]
[1723997444009,67.11,146.0,145.94,6.504]
[1723997444393,68.82283979,146.0,145.94,6.504]
[1723997444717,75.67223979,146.0,145.94,6.504]
[1723997445209,68.82283979,146.0,145.94,6.504]
[1723997445412,6.8484,146.02,145.94,6.504]
[1723997447621,8.56159244,146.01,145.94,6.504]
[1723997447821,75.67232306,146.0,145.94,6.504]
[1723997449024,1.71290849,145.99,145.94,6.504]
[1723997449615,73.9594,146.0,145.94,6.504]
[1723997450620,1.71288455,145.99,145.94,6.504]
[1723997450804,73.9594,146.0,145.94,6.504]
[1723997451004,1.71288638,145.99,145.94,6.504]
[1723997451215,1.71288638,145.98,145.94,6.504]
[1723997451726,73.9594,146.0,145.94,6.504]
[1723997451897,45.0,146.0,145.94,6.504]
[1723997453032,65.62,146.0,145.94,6.504]
[1723997453207,45.0,146.0,145.94,6.504]
[1723997455826,51.8493,146.0,145.94,6.504]
[1723997456313,45.0,146.0,145.94,6.504]
[1723997458518,22.11,146.02,145.94,6.504]
[1723997458700,45.0,146.01,145.94,6.504]
[1723997460501,1.71258638,146.01,145.94,6.504]
[1723997460825,46.71258638,146.01,145.94,6.504]
[1723997461025,22.11,146.0,145.94,6.504]
[1723997461208,6.8513,145.96,145.85,44.5987]
[1723997461416,1.71329218,145.95,145.85,44.5987]
[1723997461612,22.11,145.97,145.85,44.5987]
[1723997461811,46.71326996,145.96,145.85,44.5987]
[1723997462012,45.0,145.96,145.85,38.2129]
[1723997462332,1.71322582,145.95,145.86,6.3858]
[1723997462507,45.0,145.96,145.86,6.3858]
[1723997462711,1.71321272,145.95,145.86,6.3858]
[1723997463711,45.0,145.96,145.86,6.3858]
[1723997463925,1.71325721,145.95,145.86,6.3858]
[1723997464229,1.71325721,145.95,145.87,20.0]
[1723997464645,23.82325721,145.95,145.86,6.3858]
[1723997464811,22.11,145.93,145.86,6.3858]
[1723997465013,8.56678204,145.92,145.86,6.3858]
[1723997465434,6.8535,145.91,145.86,6.3858]
[1723997465737,46.71390968,145.9,145.85,16.1029]
[1723997465944,1.71393009,145.89,145.85,16.1029]
[1723997468018,22.11,145.93,145.85,16.1029]
[1723997468218,45.0,145.92,145.85,16.1029]
[1723997469234,51.853,145.92,145.85,16.1029]
[1723997469646,1.71382404,145.91,145.85,16.1029]
[1723997470318,45.0,145.92,145.85,16.1029]
[1723997470720,46.7138212,145.92,145.85,16.1029]
[1723997472340,53.5670212,145.92,145.85,16.1029]
[1723997472819,6.8541,145.9,145.82,6.3858]
[1723997473019,68.82418707,145.89,145.82,6.3858]
[1723997473644,73.9645,145.89,145.82,6.3858]
[1723997473939,22.11,145.93,145.82,28.4958]
[1723997474247,45.0,145.92,145.82,28.4958]
[1723997474534,51.8534,145.92,145.82,28.4958]
[1723997475525,6.8522,145.94,145.84,22.11]
[1723997476839,45.0,145.93,145.84,22.11]
[1723997477228,45.0,145.93,145.82,28.4958]
[1723997477545,51.8526,145.93,145.83,20.0]
[1723997479048,8.56702993,145.92,145.83,20.0]
[1723997479222,45.0,145.91,145.83,20.0]
[1723997479553,1.71394368,145.9,145.83,20.0]
[1723997479850,45.0,145.91,145.83,20.0]
[1723997481153,6.8533,145.92,145.83,20.0]
[1723997481154,38.3315,145.95,145.84,22.11]
[1723997481454,45.0,145.94,145.84,22.11]
[1723997482145,46.71372746,145.94,145.84,22.11]
[1723997482651,6.8535,145.92,145.83,20.0]
[1723997482947,45.0,145.91,145.83,20.0]
[1723997483245,1.71396036,145.9,145.82,6.3858]
[1723997483434,1.71409461,145.89,145.82,6.3858]
[1723997484523,46.71409461,145.89,145.82,6.3858]
[1723997485847,1.71409461,145.89,145.82,6.3858]
[1723997490052,20.62,145.94,145.83,22.11]
[1723997490257,14.4270477,145.93,145.83,22.11]
[1723997490571,7.5741477,145.92,145.83,22.11]
[1723997491551,45.0,145.91,145.83,22.11]
[1723997492448,45.49152536,145.95,145.83,22.11]
[1723997492750,6.8527,145.93,145.82,6.3858]
[1723997492952,52.57308689,145.92,145.83,20.0]
[1723997493260,45.0,145.92,145.83,20.0]
[1723997493960,45.0,145.92,145.83,42.11]
[1723997494435,45.0,145.93,145.83,42.11]
[1723997494853,7.57347944,145.92,145.83,42.11]
[1723997495155,45.0,145.93,145.83,42.11]
[1723997495340,7.57347332,145.92,145.83,42.11]
[1723997495545,45.0,145.93,145.83,42.11]
[1723997495745,7.57347572,145.92,145.83,42.11]
[1723997495939,45.0,145.93,145.83,42.11]
[1723997496145,7.57347332,145.92,145.83,42.11]
[1723997496350,45.0,145.93,145.85,22.11]
[1723997496542,45.0,145.93,145.86,15.2561]
[1723997499362,7.57299419,145.92,145.86,15.2561]
[1723997499663,1.71379255,145.91,145.86,15.2561]
[1723997501165,45.0,145.93,145.86,15.2561]
[1723997501369,7.57343357,145.92,145.86,15.2561]
[1723997501544,45.0,145.93,145.86,15.2561]
[1723997501871,7.57304487,145.92,145.86,15.2561]
[1723997502057,45.0,145.93,145.86,15.2561]
[1723997502255,7.57292046,145.92,145.86,15.2561]
[1723997502465,45.0,145.93,145.86,15.2561]
[1723997502654,7.57297128,145.92,145.86,15.2561]
[1723997502851,7.57297128,145.91,145.86,15.2561]
[1723997503174,1.71372042,145.9,145.86,15.2561]
[1723997503471,1.71376565,145.92,145.86,15.2561]
[1723997503674,7.57338303,145.91,145.86,15.2561]
[1723997503973,9.28716477,145.9,145.86,15.2561]
[1723997504176,54.28813768,145.89,145.82,21.6419]
[1723997504352,7.57410524,145.88,145.82,21.6419]
[1723997504559,53.56853244,145.89,145.82,21.6419]
[1723997504560,9.28825045,145.87,145.82,21.6419]
[1723997504772,1.71414521,145.87,145.82,21.6419]
[1723997504975,7.57516173,145.86,145.82,21.6419]
[1723997505172,1.71414521,145.87,145.82,21.6419]
[1723997505369,7.57473147,145.86,145.82,21.6419]
[1723997505671,1.71413402,145.86,145.82,21.6419]
[1723997505871,45.0,145.89,145.82,21.6419]
[1723997506073,7.57475604,145.88,145.82,21.6419]
[1723997506289,7.57475604,145.87,145.82,21.6419]
[1723997506585,7.57478118,145.86,145.82,21.6419]
[1723997506761,22.11,145.93,145.82,43.7519]
[1723997506961,52.57425152,145.92,145.82,43.7519]
[1723997507282,7.57425152,145.91,145.82,43.7519]
[1723997507473,7.57425152,145.9,145.82,43.7519]
[1723997507669,7.57425152,145.89,145.82,43.7519]
[1723997507875,6.8527,145.93,145.82,43.7519]
[1723997507876,7.57425152,145.88,145.82,43.7519]
[1723997508180,6.8527,145.93,145.82,43.7519]
[1723997508390,9.28789469,145.92,145.82,43.7519]
[1723997508584,52.57404298,145.91,145.82,43.7519]
[1723997508756,9.28790512,145.9,145.82,43.7519]
[1723997508964,9.28791567,145.89,145.82,43.7519]
[1723997509162,7.57404298,145.88,145.82,43.7519]
[1723997509379,7.57404298,145.87,145.82,43.7519]
[1723997509567,45.0,145.91,145.82,43.7519]
[1723997509765,9.28793635,145.9,145.82,21.6419]
[1723997509974,7.57445584,145.89,145.82,21.6419]
[1723997510175,7.57445584,145.88,145.82,21.6419]
[1723997510387,7.57445584,145.87,145.82,21.6419]
[1723997510607,7.57445584,145.86,145.82,21.6419]
[1723997510760,6.8535,145.91,145.82,21.6419]
[1723997511091,52.57450175,145.9,145.82,21.6419]
[1723997511271,7.57450175,145.89,145.82,21.6419]
[1723997511473,9.2885345,145.88,145.82,21.6419]
[1723997511670,7.57450175,145.87,145.82,21.6419]
[1723997511891,7.57450175,145.86,145.82,21.6419]
[1723997512183,7.57515449,145.85,145.82,21.6419]
[1723997512366,8.56886992,145.89,145.82,21.6419]
[1723997512561,52.57520779,145.88,145.82,21.6419]
[1723997512766,9.28958036,145.87,145.82,21.6419]
[1723997512970,52.57520779,145.86,145.82,21.6419]
[1723997513170,7.57520779,145.85,145.82,21.6419]
[1723997513369,7.5753572,145.84,145.78,21.6999]
[1723997513580,22.11,145.86,145.78,21.6999]
[1723997513777,54.2902611,145.85,145.78,21.6999]
[1723997514092,7.57661696,145.84,145.78,21.6999]
[1723997514385,54.29238301,145.83,145.78,6.4438]
[1723997514686,54.29238301,145.83,145.75,0.8728613]
[1723997514687,7.57751649,145.82,145.75,0.8728613]
[1723997514886,7.57751649,145.81,145.75,0.8728613]
[1723997515183,7.57751649,145.8,145.75,0.8728613]
[1723997515373,1.71500761,145.82,145.75,0.8728613]
[1723997515683,7.57749549,145.81,145.75,0.8728613]
[1723997515988,30.0,145.78,145.75,20.8728613]
[1723997518279,30.0,145.79,145.75,20.8728613]
[1723997518780,30.0,145.79,145.75,0.8728613]
[1723997521590,45.0,145.83,145.75,0.8728613]
[1723997521796,1.71491254,145.82,145.75,0.8728613]
[1723997521987,45.0,145.83,145.75,0.8728613]
[1723997523280,45.0,145.83,145.75,22.9828613]
[1723997523483,6.8557,145.87,145.75,22.9828613]
[1723997523704,14.43286313,145.86,145.76,20.0]
[1723997524011,7.57686313,145.85,145.76,20.0]
[1723997524200,7.57686313,145.84,145.76,20.0]
[1723997524394,6.856,145.86,145.76,20.0]
[1723997524599,7.57684066,145.85,145.76,20.0]
[1723997524800,52.57684066,145.84,145.76,20.0]
[1723997524996,45.0,145.84,145.76,20.0]
[1723997525190,45.0,145.85,145.76,20.0]
[1723997526410,46.71466616,145.85,145.76,20.0]
[1723997526616,7.57661635,145.84,145.76,20.0]
[1723997526913,45.0,145.83,145.75,20.8728613]
[1723997527214,53.57106616,145.85,145.75,20.8728613]
[1723997527420,7.57641483,145.84,145.75,20.8728613]